bitfinex-derivatives/quotes_BNBF0:USTF0_20250115
["timestamp","ask_amount","ask_price","bid_price","bid_amount"]
[1736930709332,1.35457079,699.59,698.31,0.28640575]
[1736930709333,1.06868906,699.58,698.59,1.07004098]
[1736930710630,1.06868906,699.58,698.31,0.28640575]
[1736930710631,1.06868906,699.57,698.61,1.07004098]
[1736930711728,0.28588173,699.59,698.43,1.07004098]
[1736930712633,0.28588173,699.59,698.31,0.28640575]
[1736930712634,1.06868906,699.55,698.4,1.07004098]
[1736930712933,1.05629078,699.55,698.4,1.07004098]
[1736930713837,0.28588173,699.59,698.4,1.07004098]
[1736930714035,0.28588173,699.59,698.39,1.07004098]
[1736930715135,0.28588173,699.59,698.34,1.07004098]
[1736930717730,0.28588173,699.59,698.33,1.07004098]
[1736930718838,0.28588173,699.59,698.31,0.28640575]
[1736930720139,0.26286173,699.58,698.31,0.28640575]
[1736930720338,0.28588173,699.59,698.31,0.28640575]
[1736930720540,0.26286635,699.58,698.31,0.28640575]
[1736930720741,0.28588173,699.59,698.31,1.35644673]
[1736930721838,0.26286908,699.58,698.41,1.07004098]
[1736930723140,0.28588173,699.59,698.41,1.07004098]
[1736930723339,0.28588173,699.59,698.37,1.07004098]
[1736930724333,0.28588173,699.59,698.42,1.07004098]
[1736930725834,0.28588173,699.59,698.5,1.07004098]
[1736930726937,0.28588173,699.59,698.53,1.07004098]
[1736930728438,0.28588173,699.59,698.51,1.07004098]
[1736930729243,0.28588173,699.59,698.43,1.07004098]
[1736930729244,0.28588173,699.59,698.48,1.07004098]
[1736930731443,0.28588173,699.59,698.51,1.07004098]
[1736930733540,0.28588173,699.59,698.52,1.07004098]
[1736930734343,0.28588173,699.59,698.53,1.07004098]
[1736930735542,0.28588173,699.59,698.54,1.07004098]
[1736930736345,0.28588173,699.59,698.53,1.07004098]
[1736930737342,0.28588173,699.59,698.55,1.07004098]
[1736930738745,0.28588173,699.59,698.49,1.07004098]
[1736930739346,0.28588173,699.59,698.47,1.07004098]
[1736930742051,0.28588173,699.59,698.48,1.07004098]
[1736930743157,0.28588173,699.59,698.47,1.07004098]
[1736930744351,0.28588173,699.59,698.43,1.07004098]
[1736930748461,0.28588173,699.59,698.44,1.07004098]
[1736930749961,0.28588173,699.59,698.31,0.28640575]
[1736930759768,0.28588173,699.59,698.52,1.07004098]
[1736930761065,0.28588173,699.59,698.31,0.28640575]
[1736930770077,0.28588173,699.59,698.4,1.07004098]
[1736930771375,0.28588173,699.59,698.31,0.28640575]
[1736930771376,0.28588173,699.59,698.48,1.07004098]
[1736930772574,0.28588173,699.59,698.51,1.07004098]
[1736930773576,0.28588173,699.59,698.49,1.07004098]
[1736930775877,0.28588173,699.59,698.57,1.07004098]
[1736930776777,0.28588173,699.59,698.58,1.07004098]
[1736930777773,0.28588173,699.59,698.66,1.07004098]
[1736930778884,0.28588173,699.59,698.64,1.07004098]
[1736930779681,0.28588173,699.59,698.66,1.07004098]
[1736930780681,0.28588173,699.59,698.57,1.07004098]
[1736930781577,0.28588173,699.59,698.58,1.07004098]
[1736930782783,0.28588173,699.59,698.45,1.07004098]
[1736930785184,0.28588173,699.59,698.44,1.07004098]
[1736930785985,0.28588173,699.59,698.41,1.07004098]
[1736930790091,0.28588173,699.59,698.36,1.07004098]
[1736930792492,0.28588173,699.59,698.42,1.07004098]
[1736930793391,0.28588173,699.59,698.43,1.07004098]
[1736930794387,0.28588173,699.59,698.47,1.07004098]
[1736930795587,0.28588173,699.59,698.42,1.07004098]
[1736930796193,0.26285838,699.58,698.42,1.07004098]
[1736930796787,0.26285838,699.58,698.46,1.07004098]
[1736930798092,0.26285838,699.58,698.41,1.07004098]
[1736930799395,0.26285838,699.58,698.4,1.07004098]
[1736930800092,0.26286549,699.57,698.4,1.07004098]
[1736930800292,0.26286549,699.56,698.4,1.07004098]
[1736930800589,0.28588173,699.59,698.4,1.07004098]
[1736930800793,0.26286216,699.58,698.4,1.07004098]
[1736930801095,0.26286234,699.58,698.4,1.07004098]
[1736930801994,0.26286234,699.58,698.41,1.07004098]
[1736930802790,0.26286234,699.58,698.4,1.07004098]
[1736930805699,0.2628664,699.57,698.4,1.07004098]
[1736930805895,0.2628664,699.56,698.4,1.07004098]
[1736930806099,0.2628664,699.55,698.4,1.07004098]
[1736930806400,0.2628664,699.54,698.4,1.07004098]
[1736930806594,0.2628664,699.53,698.4,1.07004098]
[1736930806794,0.2628664,699.52,698.4,1.07004098]
[1736930806999,0.28588173,699.59,698.4,1.07004098]
[1736930807196,0.26286704,699.58,698.4,1.07004098]
[1736930807795,0.26286704,699.58,698.41,1.07004098]
[1736930807995,0.28588173,699.59,698.41,1.07004098]
[1736930808804,0.28588173,699.59,698.33,1.07004098]
[1736930809804,0.28588173,699.59,698.32,1.07004098]
[1736930810600,0.28588173,699.59,698.34,1.07004098]
[1736930811804,0.28588173,699.59,698.33,1.07004098]
[1736930812802,0.28588173,699.59,698.31,1.35644673]
[1736930814904,0.28588173,699.59,698.31,0.28640575]
[1736930817808,0.26287153,699.58,698.31,0.28640575]
[1736930818602,0.26287153,699.58,698.36,1.07004098]
[1736930819202,0.28588173,699.59,698.36,1.07004098]
[1736930819908,0.28588173,699.59,698.31,0.28640575]
[1736930822512,0.26289355,699.58,698.31,0.28640575]
[1736930824013,0.28588173,699.59,698.31,0.28640575]
[1736930824214,0.26289356,699.58,698.31,0.28640575]
[1736930824909,0.54879754,699.57,698.31,0.28640575]
[1736930825211,0.54880163,699.56,698.31,0.28640575]
[1736930825410,1.06868906,699.77,698.31,0.28640575]
[1736930825411,0.54880571,699.55,698.31,0.28640575]
[1736930825615,0.26290764,699.54,698.31,0.28640575]
[1736930829213,0.28590625,699.53,698.31,0.28640575]
[1736930832221,0.28590625,699.53,697.7,1.07004098]
[1736930832514,0.28590625,699.53,697.72,0.28664793]
[1736930833518,0.26295475,699.52,697.73,2.57332795]
[1736930833824,0.26295475,699.52,697.72,0.28664793]
[1736930833825,0.26295475,699.52,697.74,5.3615508]
[1736930834022,0.26295475,699.52,697.75,2.57332795]
[1736930834222,0.26295475,699.52,697.76,1.71471178]
[1736930834422,0.26295475,699.52,697.74,2.78822285]
[1736930834624,0.26295475,699.52,697.76,0.2866315]
[1736930834923,0.26295475,699.52,698.02,1.07004098]
[1736930834924,1.06622467,699.44,698.02,1.07004098]
[1736930835116,0.26295475,699.43,698.02,1.07004098]
[1736930835320,0.28595121,699.42,698.02,1.07004098]
[1736930835521,0.26296919,699.41,698.02,1.07004098]
[1736930835723,0.28595939,699.4,698.02,1.07004098]
[1736930835922,0.26296919,699.39,698.02,1.07004098]
[1736930836122,0.28596757,699.38,698.02,1.07004098]
[1736930836320,0.26296919,699.37,698.02,1.07004098]
[1736930836525,0.26296919,699.37,697.95,1.07004098]
[1736930836722,0.28597574,699.36,697.95,1.07004098]
[1736930836923,0.26296919,699.35,697.95,1.07004098]
[1736930837518,0.26296919,699.35,698.03,1.07004098]
[1736930837917,0.26297197,699.34,698.03,1.07004098]
[1736930838118,0.26297197,699.33,698.03,1.07004098]
[1736930838322,0.26297197,699.32,698.02,1.07004098]
[1736930838626,0.26297197,699.31,698.02,1.07004098]
[1736930838825,0.26297197,699.3,698.02,1.07004098]
[1736930839123,0.28597983,699.35,698.02,1.07004098]
[1736930839124,0.26297197,699.29,698.02,1.07004098]
[1736930839324,0.26297197,699.28,698.0,1.07004098]
[1736930839528,0.26297197,699.27,698.0,1.07004098]
[1736930839724,0.26297197,699.26,698.0,1.07004098]
[1736930839926,0.26297197,699.25,698.0,1.07004098]
[1736930840225,0.28597983,699.35,698.0,1.07004098]
[1736930840226,0.26297197,699.24,698.0,1.07004098]
[1736930840426,0.28597983,699.35,698.0,1.07004098]
[1736930840727,0.28597983,699.35,697.97,1.07004098]
[1736930840728,0.26297156,699.34,697.97,1.07004098]
[1736930841323,0.28597983,699.35,697.97,1.07004098]
[1736930841521,0.26296953,699.34,697.97,1.07004098]
[1736930841927,0.26296953,699.34,697.93,1.07004098]
[1736930843022,0.26296953,699.34,697.92,1.07004098]
[1736930843423,0.26297046,699.33,697.92,1.07004098]
[1736930843625,0.28597983,699.35,697.92,1.07004098]
[1736930843825,0.26296412,699.34,697.92,1.07004098]
[1736930844228,0.26296412,699.34,697.94,1.07004098]
[1736930845230,0.26296638,699.33,697.94,1.07004098]
[1736930845529,0.26296631,699.32,697.94,1.07004098]
[1736930845729,0.28597983,699.35,697.94,1.07004098]
[1736930846525,0.28597983,699.35,697.95,0.28655347]
[1736930846729,0.28597983,699.35,698.04,1.07004098]
[1736930847630,0.28597983,699.35,698.09,1.07004098]
[1736930848526,0.28597983,699.35,698.12,1.07004098]
[1736930849728,0.28597983,699.35,698.13,1.07004098]
[1736930850534,0.28597983,699.35,698.14,1.07004098]
[1736930851835,0.28597983,699.35,698.15,1.07004098]
[1736930852935,0.28597983,699.35,698.14,1.07004098]
[1736930854238,0.28597983,699.35,698.17,1.07004098]
[1736930855437,0.28597983,699.35,698.15,1.07004098]
[1736930855635,0.26295189,699.34,698.15,1.07004098]
[1736930856439,0.26295189,699.34,697.95,0.28655347]
[1736930856440,0.26295189,699.34,698.14,1.07004098]
[1736930857241,0.26295189,699.34,698.15,1.07004098]
[1736930858538,0.26295189,699.34,697.95,0.28655347]
[1736930858539,0.26295189,699.34,698.16,1.07004098]
[1736930859139,1.06622467,699.33,698.15,1.07004098]
[1736930859343,0.26295189,699.32,698.15,1.07004098]
[1736930860045,0.26296492,699.31,698.15,1.07004098]
[1736930860245,1.32918959,699.3,698.15,1.07004098]
[1736930860440,0.26296492,699.29,698.15,1.07004098]
[1736930860640,1.06622467,699.3,698.15,1.07004098]
[1736930861345,1.06622467,699.3,698.17,1.07004098]
[1736930862341,1.06622467,699.3,698.16,1.07004098]
[1736930863342,1.06622467,699.29,698.16,1.07004098]
[1736930864546,0.28597983,699.35,697.95,0.28655347]
[1736930870046,0.28597983,699.35,698.08,1.07004098]
[1736930871345,0.28597983,699.35,698.07,1.07004098]
[1736930871549,0.28597983,699.35,698.08,0.28650011]
[1736930877954,0.28597983,699.35,698.14,1.07004098]
[1736930879056,0.28597983,699.35,698.22,1.07004098]
[1736930880256,0.28597983,699.35,698.15,1.07004098]
[1736930881452,0.28597983,699.35,698.2,1.07004098]
[1736930882459,0.28597983,699.35,698.23,1.07004098]
[1736930883659,0.28597983,699.35,698.08,0.28650011]
[1736930883660,0.28597983,699.35,698.19,1.07004098]
[1736930884856,0.28597983,699.35,698.23,1.07004098]
[1736930885861,0.28597983,699.35,698.21,1.07004098]
[1736930886962,0.28597983,699.35,698.08,0.28650011]
[1736930893061,0.28597983,699.35,698.2,1.07004098]
[1736930894260,0.28597983,699.35,698.21,1.07004098]
[1736930895463,0.28597983,699.35,698.2,1.07004098]
[1736930896566,0.28597983,699.35,698.25,1.07004098]
[1736930897466,0.28597983,699.35,698.26,1.07004098]
[1736930898765,0.28597983,699.35,698.31,1.07004098]
[1736930900060,0.28597983,699.35,698.32,1.07004098]
[1736930901169,0.28597983,699.35,698.33,1.07004098]
[1736930902471,0.28597983,699.35,698.41,1.07004098]
[1736930903370,0.28597983,699.35,698.08,2.47116711]
[1736930903371,0.28597983,699.35,698.4,1.07004098]
[1736930904869,0.28597983,699.35,698.08,0.28650011]
[1736930904870,0.28597983,699.35,698.37,1.07004098]
[1736930906868,0.28597983,699.35,698.36,1.07004098]
[1736930907772,0.28597983,699.35,698.38,1.07004098]
[1736930910773,0.28597983,699.35,698.36,1.07004098]
[1736930913278,0.28597983,699.35,698.32,1.07004098]
[1736930914174,0.28597983,699.35,698.34,1.07004098]
[1736930915279,0.28597983,699.35,698.33,1.07004098]
[1736930916780,0.28597983,699.35,698.3,1.07004098]
[1736930917579,0.28597983,699.35,698.33,1.07004098]
[1736930918877,0.28597983,699.35,698.3,1.07004098]
[1736930921282,0.28597983,699.35,698.31,1.07004098]
[1736930921983,0.28597983,699.35,698.16,1.07004098]
[1736930923180,0.28597983,699.35,698.13,1.07004098]
[1736930923380,0.28597983,699.35,698.14,0.28647549]
[1736930933890,0.28597983,699.35,698.17,1.07004098]
[1736930934892,0.28597983,699.35,698.19,1.07004098]
[1736930936289,0.28597983,699.35,698.17,1.07004098]
[1736930937592,0.28597983,699.35,698.14,0.28647549]
[1736930938689,0.28597983,699.35,698.15,1.07004098]
[1736930939595,0.28597983,699.35,698.14,1.35651647]
[1736930940698,0.28597983,699.35,698.14,0.28647549]
[1736930941798,0.28597983,699.35,698.16,1.07004098]
[1736930943097,0.28597983,699.35,698.14,0.28647549]
[1736930943098,0.28597983,699.35,698.17,1.07004098]
[1736930945497,0.28597983,699.35,698.18,1.07004098]
[1736930947897,0.28597983,699.35,698.14,0.28647549]
[1736930947898,0.28597983,699.35,698.21,1.07004098]
[1736930949893,0.28597983,699.35,698.14,0.28647549]
[1736930954803,0.28597983,699.35,698.15,2.57467915]
[1736930955003,0.28597983,699.35,698.16,2.5746365]
[1736930955199,0.28597983,699.35,698.17,2.5746365]
[1736930955403,0.28597983,699.35,698.34,1.07004098]
[1736930956305,0.28597983,699.35,698.36,1.07004098]
[1736930957401,0.28597983,699.35,698.38,1.07004098]
[1736930958298,0.28597983,699.35,698.37,1.07004098]
[1736930959505,0.28597983,699.35,698.38,1.07004098]
[1736930961906,0.28597983,699.35,698.39,1.07004098]
[1736930962804,0.28597983,699.35,698.37,1.07004098]
[1736930963708,0.28597983,699.35,698.34,1.07004098]
[1736930965310,0.28597983,699.35,698.28,1.07004098]
[1736930966011,0.28597983,699.35,698.19,1.07004098]
[1736930967304,0.28597983,699.35,698.14,0.28647549]
[1736930977016,0.28597983,699.35,698.17,1.07004098]
[1736930978014,0.28597983,699.35,698.14,0.28647549]
[1736930980317,0.28597983,699.35,698.15,1.71689616]
[1736930980610,1.06622467,699.73,698.16,1.14472077]
[1736930980811,1.3520492,699.73,698.17,2.86161283]
[1736930981010,1.3520492,699.73,698.18,2.86160872]
[1736930981211,1.3520492,699.73,698.19,0.28645497]
[1736930981615,1.3520492,699.73,698.39,1.07004098]
[1736930982814,0.28582453,699.73,698.43,1.07004098]
[1736930983915,0.28582453,699.73,698.39,1.07004098]
[1736930985015,0.28582453,699.73,698.38,1.07004098]
[1736930986012,0.28582453,699.73,698.19,0.28645497]
[1736930986013,0.28582453,699.73,698.37,1.07004098]
[1736930986816,0.28582453,699.73,698.26,1.07004098]
[1736930987213,0.28582453,699.73,698.27,0.28642215]
[1736930989523,0.26282473,699.72,698.27,0.28642215]
[1736930989822,0.28582453,699.73,698.27,0.28642215]
[1736930991021,0.28582453,699.73,698.28,1.71179715]
[1736930991216,0.28582453,699.73,698.27,0.28642215]
[1736930991422,0.28582453,699.73,698.29,0.28641395]
[1736930991723,0.28582453,699.73,698.38,1.07004098]
[1736930991923,0.28582453,699.73,698.39,0.28637294]
[1736931003932,0.28582453,699.73,698.05,1.07004098]
[1736931004130,1.06622467,700.0,698.05,1.07004098]
[1736931004334,0.26284563,699.99,698.05,1.07004098]
[1736931004735,1.06622467,699.97,698.03,1.07004098]
[1736931005036,0.26284563,699.96,698.03,1.07004098]
[1736931005232,0.26284563,699.95,698.04,2.56803401]
[1736931005433,0.26284563,699.94,698.05,3.63807499]
[1736931005633,0.26284563,699.93,698.06,5.3485071]
[1736931005834,0.26284563,699.92,698.07,1.70978642]
[1736931006035,0.26284563,699.91,698.08,0.85824759]
[1736931006235,0.26284563,699.9,698.09,1.70978642]
[1736931006437,0.26284563,699.89,698.1,0.85824759]
[1736931006636,0.71575387,700.53,698.1,0.85824759]
[1736931006637,1.06622467,699.85,698.25,1.07004098]
[1736931006939,0.26284563,699.84,698.25,1.07004098]
[1736931007433,1.06622467,699.81,698.23,1.07004098]
[1736931007639,0.26284563,699.8,698.23,1.07004098]
[1736931008637,0.26284563,699.8,697.89,2.184667]
[1736931008638,0.26284563,699.8,698.24,1.07004098]
[1736931008834,0.26284563,699.82,698.24,1.07004098]
[1736931009033,0.26284563,699.81,698.24,1.07004098]
[1736931009341,0.26284563,699.8,698.24,1.07004098]
[1736931009543,0.26284563,699.79,698.24,1.07004098]
[1736931009737,1.06622467,699.81,698.23,1.07004098]
[1736931009941,0.26284563,699.8,698.23,1.07004098]
[1736931010740,0.26284563,699.8,697.87,2.184667]
[1736931010741,1.3290703,699.8,698.25,1.07004098]
[1736931010942,0.26284563,699.79,698.25,1.07004098]
[1736931011946,1.06622467,699.75,698.29,1.07004098]
[1736931012240,0.26284563,699.74,698.29,1.07004098]
[1736931012441,0.26284211,699.73,698.29,1.07004098]
[1736931012642,0.26284211,699.72,698.29,1.07004098]
[1736931012842,0.26284211,699.71,698.29,1.07004098]
[1736931013042,0.26284211,699.7,698.29,1.07004098]
[1736931013243,0.26284224,699.69,698.29,1.07004098]
[1736931013439,0.26284224,699.76,698.29,1.07004098]
[1736931013642,0.26284224,699.75,698.29,1.07004098]
[1736931013943,0.26284224,699.75,698.02,1.28404918]
[1736931013944,1.06622467,699.71,698.34,1.07004098]
[1736931014135,0.26284224,699.7,698.34,1.07004098]
[1736931014939,0.26284224,699.7,697.79,2.184667]
[1736931014940,1.06622467,699.66,698.4,1.07004098]
[1736931015139,0.26284224,699.65,698.4,1.07004098]
[1736931015943,1.32906691,699.65,698.39,1.07004098]
[1736931016142,1.06622467,699.65,698.39,1.07004098]
[1736931016643,1.06622467,699.66,698.4,1.07004098]
[1736931017844,1.06622467,699.72,698.35,1.07004098]
[1736931018342,0.2628402,699.71,698.35,1.07004098]
[1736931019143,1.06622467,699.69,698.31,1.07004098]
[1736931019337,0.2628402,699.68,698.31,1.07004098]
[1736931020442,1.32906487,699.68,698.34,1.07004098]
[1736931020642,0.2628402,699.67,698.34,1.07004098]
[1736931020843,1.06622467,699.68,698.34,1.07004098]
[1736931021042,0.26284953,699.67,698.34,1.07004098]
[1736931021442,1.06622467,699.68,698.34,1.07004098]
[1736931021844,1.06622467,699.67,698.33,1.07004098]
[1736931022045,0.26284393,699.66,698.33,1.07004098]
[1736931022648,1.06622467,699.67,698.35,1.07004098]
[1736931022847,0.26284407,699.66,698.35,1.07004098]
[1736931023045,1.06622467,699.67,698.35,1.07004098]
[1736931023646,1.06622467,699.67,698.42,1.07004098]
[1736931024741,1.06622467,699.67,697.9,2.184667]
[1736931024742,1.06622467,699.8,698.27,1.07004098]
[1736931025848,0.26281123,699.79,698.32,1.07004098]
[1736931026050,1.06622467,699.82,698.32,1.07004098]
[1736931026647,0.26280567,699.81,698.32,1.07004098]
[1736931027349,1.06622467,699.78,698.44,1.07004098]
[1736931028151,1.06622467,699.78,698.48,1.07004098]
[1736931029150,1.06622467,699.77,698.48,1.07004098]
[1736931030045,1.06622467,700.05,698.22,1.07004098]
[1736931030846,1.06622467,700.06,698.23,1.07004098]
[1736931032145,0.26276713,700.05,698.24,2.5698322]
[1736931032349,0.26276713,700.05,697.63,2.184667]
[1736931032350,0.26276713,700.05,698.27,1.07004098]
[1736931033447,1.06622467,699.98,698.42,1.07004098]
[1736931034052,0.26277442,699.97,698.42,1.07004098]
[1736931034645,0.26277442,699.97,698.39,1.07004098]
[1736931035243,0.28573061,699.96,698.39,1.35641392]
[1736931035448,0.26277442,699.95,698.4,0.28636884]
[1736931035849,0.28573877,699.94,698.43,1.07004098]
[1736931036044,0.26277442,699.93,698.43,1.35639752]
[1736931036444,0.28574694,699.92,698.43,1.35639752]
[1736931036646,0.26277442,699.91,698.43,1.35639752]
[1736931036850,0.2857551,699.9,698.43,1.35639752]
[1736931037051,0.2857551,699.9,698.44,1.71287483]
[1736931037351,0.26276069,699.89,698.56,1.07004098]
[1736931037652,0.2627544,699.88,698.56,1.07004098]
[1736931037848,0.2627544,699.87,698.56,1.07004098]
[1736931038048,0.2857551,699.9,698.56,1.07004098]
[1736931038250,0.26274589,699.89,698.56,1.07004098]
[1736931038447,0.26274589,699.89,698.62,1.07004098]
[1736931039352,0.26274589,699.89,698.59,1.07004098]
[1736931039549,0.2857551,699.9,698.59,1.07004098]
[1736931040446,0.2857551,699.9,698.43,0.28635654]
[1736931050565,0.2857551,699.9,698.44,1.07004098]
[1736931051661,0.2857551,699.9,698.45,1.07004098]
[1736931052864,0.2857551,699.9,698.43,1.35639752]
[1736931053163,0.2857551,699.9,698.44,0.28635244]
[1736931054465,0.2857551,699.9,698.45,1.07004098]
[1736931054963,0.26276336,699.89,698.45,1.07004098]
[1736931055864,0.26276336,699.89,698.53,1.07004098]
[1736931056363,0.2857551,699.9,698.53,1.07004098]
[1736931056561,0.2857551,699.9,698.54,1.07004098]
[1736931056562,0.26277202,699.89,698.54,1.07004098]
[1736931057065,0.2627765,699.88,698.54,1.07004098]
[1736931057258,0.2627765,699.87,698.54,1.07004098]
[1736931057460,0.54854794,699.86,698.54,1.07004098]
[1736931057669,0.54856713,699.85,698.54,1.07004098]
[1736931057866,1.35200019,699.85,698.48,1.07004098]
[1736931058063,0.54857321,699.84,698.48,1.07004098]
[1736931058268,0.2857796,699.84,698.48,1.07004098]
[1736931059269,1.32902617,699.83,698.48,1.07004098]
[1736931059469,1.06622467,699.83,698.48,1.07004098]
[1736931060063,1.06622467,699.79,698.48,1.07004098]
[1736931060665,1.35202469,699.79,698.48,1.07004098]
[1736931061571,1.35202469,699.79,698.44,0.28635244]
[1736931061572,1.06622467,699.78,698.49,1.07004098]
[1736931062371,1.35202469,699.79,698.52,1.07004098]
[1736931063172,0.28580002,699.79,698.53,1.07004098]
[1736931064466,0.28580002,699.79,698.6,1.07004098]
[1736931065273,0.28580002,699.79,698.63,1.07004098]
[1736931066366,0.28580002,699.79,698.59,1.07004098]
[1736931066568,0.28580002,699.79,698.44,0.28635244]
[1736931067975,0.28580002,699.79,698.59,1.07085507]
[1736931068975,0.28580002,699.79,698.56,1.07085507]
[1736931069979,0.28580002,699.79,698.44,0.28635244]
[1736931069980,0.28580002,699.79,698.57,1.07085507]
[1736931070773,0.28580002,699.79,698.58,1.07085507]
[1736931071877,0.28580002,699.79,698.6,1.07085507]
[1736931072779,0.28580002,699.79,698.59,1.07085507]
[1736931073772,0.28580002,699.79,698.61,1.07085507]
[1736931074879,1.06804247,699.77,698.58,1.07085507]
[1736931075782,0.28580002,699.79,698.46,1.07085507]
[1736931077983,0.28580002,699.79,698.45,1.07085507]
[1736931079184,0.28580002,699.79,698.44,0.28635244]
[1736931080279,0.28580002,699.79,698.45,1.07085507]
[1736931081278,0.28580002,699.79,698.44,1.35720751]
[1736931084485,0.28580002,699.79,698.45,1.07085507]
[1736931085588,1.06804247,699.76,698.57,1.07085507]
[1736931086587,1.06804247,699.74,698.62,1.07085507]
[1736931087881,1.06804247,699.77,698.64,1.07085507]
[1736931088789,1.06804247,699.72,698.68,1.07085507]
[1736931089791,1.06804247,699.7,698.65,1.07085507]
[1736931091288,0.28580002,699.79,698.61,1.07085507]
[1736931091289,1.06804247,699.66,698.61,1.07085507]
[1736931092383,1.06804247,699.74,698.46,1.07085507]
[1736931092588,0.28582453,699.73,698.46,1.07085507]
[1736931093192,1.06804247,699.69,698.44,0.28635244]
[1736931093989,1.06804247,699.71,698.44,0.28635244]
[1736931095291,0.28583678,699.7,698.44,0.28635244]
[1736931095895,0.2628485,699.69,698.44,0.28635244]
[1736931096188,0.28584495,699.68,698.44,0.28635244]
[1736931096493,0.2628485,699.67,698.44,0.28635244]
[1736931096792,0.28585312,699.66,698.44,0.28635244]
[1736931099090,0.26285048,699.65,698.44,0.28635244]
[1736931099491,0.2858613,699.64,698.44,0.28635244]
[1736931099892,0.26284883,699.63,698.44,0.28635244]
[1736931100092,1.06804247,699.69,698.44,0.28635244]
[1736931100093,0.28586947,699.62,698.44,0.28635244]
[1736931100395,0.26284724,699.61,698.44,0.28635244]
[1736931100590,0.54872079,699.61,698.44,0.28635244]
[1736931100795,0.26284724,699.6,698.44,0.28635244]
[1736931101890,0.28587355,699.61,698.44,0.28635244]
[1736931123915,1.06804247,699.59,698.44,0.28635244]
[1736931124317,0.26286824,699.58,698.44,0.28635244]
[1736931125615,1.06804247,699.55,698.44,0.28635244]
[1736931126611,0.28587355,699.61,698.44,0.28635244]
[1736931126612,1.06804247,699.53,698.44,0.28635244]
[1736931127718,1.06804247,699.52,698.44,0.28635244]
[1736931128818,1.06804247,699.51,698.44,0.28635244]
[1736931130921,0.28587355,699.61,698.44,0.28635244]
[1736931130922,1.06804247,699.52,698.44,0.28635244]
[1736931131823,1.06804247,699.51,698.44,0.28635244]
[1736931133124,0.28587355,699.61,698.44,0.28635244]
[1736931133125,1.06804247,699.5,698.44,0.28635244]
[1736931134425,1.06804247,699.5,698.38,1.07085507]
[1736931134826,0.2859226,699.49,698.15,1.07085507]
[1736931135725,0.2859226,699.49,698.1,1.07085507]
[1736931136826,0.2859226,699.49,698.09,1.07085507]
[1736931139029,0.2859226,699.49,698.07,1.07085507]
[1736931140329,0.2859226,699.49,698.05,1.07085507]
[1736931141128,0.2859226,699.49,698.07,1.07085507]
[1736931142029,0.2859226,699.49,698.06,1.07085507]
[1736931143032,0.2859226,699.49,698.07,1.07085507]
[1736931143733,0.26290463,699.48,698.08,5.36130303]
[1736931143928,0.28593077,699.47,698.09,2.57311892]
[1736931144133,0.26290463,699.46,698.1,2.57311892]
[1736931144333,0.26290543,699.45,698.11,2.57311892]
[1736931144632,0.28593077,699.47,698.12,1.71465857]
[1736931144832,1.06804247,699.43,698.24,1.07085507]
[1736931145034,1.06804247,699.43,698.33,1.07085507]
[1736931146137,1.06804247,699.44,698.34,1.07085507]
[1736931147842,1.06804247,699.42,698.33,1.07085507]
[1736931148934,1.06804247,699.42,697.84,2.1863291]
[1736931148935,1.06804247,699.44,698.35,1.07085507]
[1736931150035,0.28593077,699.47,698.23,1.07085507]
[1736931150940,1.06804247,699.45,698.19,1.07085507]
[1736931151238,0.28594304,699.44,698.19,1.07085507]
[1736931152041,0.28594304,699.44,698.18,1.07085507]
[1736931153138,0.28594304,699.44,698.2,1.07085507]
[1736931154345,0.28594304,699.44,698.19,1.07085507]
[1736931154346,0.26292318,699.43,698.19,1.07085507]
[1736931155437,1.06804247,699.4,698.26,1.07085507]
[1736931156544,0.26292657,699.39,698.25,1.07085507]
[1736931156736,0.26292657,699.38,698.25,1.07085507]
[1736931157043,1.06804247,699.41,698.25,1.07085507]
[1736931157342,0.26292764,699.4,698.25,1.07085507]
[1736931157643,1.06804247,699.39,698.23,1.07085507]
[1736931158536,1.06804247,699.39,697.75,2.1863291]
[1736931158537,1.06804247,699.4,698.25,1.07085507]
[1736931159843,0.28594304,699.44,697.92,1.07085507]
[1736931160040,0.28594304,699.44,697.93,0.28656168]
[1736931163147,0.28594304,699.44,697.93,1.35741675]
[1736931166050,0.28594304,699.44,697.95,1.07085507]
[1736931166249,0.28594304,699.44,697.96,0.28654937]
[1736931166951,0.28594304,699.44,697.96,1.35740444]
[1736931168650,0.28594304,699.44,697.98,1.07085507]
[1736931168852,0.28594304,699.44,697.99,0.28653705]
[1736931169747,0.28594304,699.44,698.17,1.07085507]
[1736931170951,0.28594304,699.44,698.23,1.07085507]
[1736931171752,0.28594304,699.44,698.22,1.07085507]
[1736931172753,0.28594304,699.44,698.24,1.07085507]
[1736931174054,0.28594304,699.44,698.25,1.07085507]
[1736931175058,0.28594304,699.44,698.26,1.07085507]
[1736931175955,0.28594304,699.44,698.21,1.07085507]
[1736931177357,0.28594304,699.44,698.24,1.07085507]
[1736931178556,1.06804247,699.43,698.23,1.07085507]
[1736931179459,0.28594304,699.44,698.23,1.07085507]
[1736931179460,1.06804247,699.42,698.23,1.07085507]
[1736931180553,1.06804247,699.41,698.22,1.07085507]
[1736931181762,1.06804247,699.39,698.21,1.07085507]
[1736931182857,1.06804247,699.38,698.21,1.07085507]
[1736931183859,1.06804247,699.38,698.22,1.07085507]
[1736931184663,1.06804247,699.37,698.22,1.07085507]
[1736931185960,1.06804247,699.35,698.25,1.07085507]